[Event "IIFL Wealth  4th Mumbai Junior U-13"]
[Site "Mumbai"]
[Date "2019.01.01"]
[Round "3"]
[White "Manish Anto Cristiano F"]
[Black "Nehete Arnav"]
[Result "1-0"]
[ECO "E09"]
[WhiteElo "2065"]
[BlackElo "1544"]
[Annotator "NA"]
[PlyCount "27"]
[EventDate "2018.12.30"]
[EventType "swiss"]
[EventCountry "IND"]
[SourceTitle "playchess.com"]
[Source "ChessBase"]
[SourceQuality "1"]
[TimeControl "40/5400+30:1800+30"]

1. Nf3 {[%emt 0:00:00]} Nf6 {[%emt 0:00:00]} 2. g3 {[%emt 0:00:10]} d5 {[%emt 0:00:00]} 3. Bg2 {[%emt 0:00:23]} c6 {[%emt 0:00:24]} 4. O-O {[%emt 0:00:39]} Nbd7 {[%emt 0:00:05]} 5. d4 {[%emt 0:00:29]} e6 {[%emt 0:00:06]} 6. c4 {[%emt 0:00:49]} Be7 {[%emt 0:02:22]} 7. Nbd2 {[%emt 0:00:17]} O-O {[%emt 0:00:06]} 8. Qc2 {[%emt 0:01:40]} b6 {[%emt 0:00:49]} 9. e4 {[%emt 0:08:54]} Bb7 {[%emt 0:00:02]} 10. e5 {[%emt 0:03:24]} Ne8 {[%emt 0:00:37]} 11. cxd5 {[%emt 0:00:39]} cxd5 {[%emt 0:00:07]} 12. Nb1 $14 {[%emt 0:17:04]} Rc8 {[%emt 0:02:31]} 13. Qd3 {[%emt 0:00:31]} Nc7 {[%emt 0:00:23]} 14. Re1 {[%emt 0:01:24]} 1-0

[Event "IIFL Wealth  4th Mumbai Junior U-13"]
[Site "Mumbai"]
[Date "2019.01.01"]
[Round "3"]
[White "Shah Jeet"]
[Black "Marium Fatima"]
[Result "1-0"]
[ECO "C14"]
[WhiteElo "1904"]
[BlackElo "1494"]
[Annotator "NA RC"]
[PlyCount "101"]
[EventDate "2018.12.30"]
[EventType "swiss"]
[EventCountry "IND"]
[SourceTitle "playchess.com"]
[Source "ChessBase"]
[SourceQuality "1"]
[TimeControl "40/5400+30:1800+30"]

1. e4 {[%emt 0:00:00]} e6 {[%emt 0:00:00]} 2. d4 {[%emt 0:00:05]} d5 {[%emt 0:00:00]} 3. Nc3 {[%emt 0:00:07]} Nf6 {[%emt 0:00:00]} 4. Bg5 {[%emt 0:00:30]} Be7 {[%emt 0:00:00]} 5. e5 {[%emt 0:00:11]} Nfd7 {[%emt 0:00:03]} 6. Bxe7 {[%emt 0:00:06]} Qxe7 {[%emt 0:00:11]} 7. f4 {[%emt 0:01:51]} O-O {[%emt 0:00:14]} 8. Nf3 {[%emt 0:04:19]} a6 {[%emt 0:01:48]} 9. Bd3 {[%emt 0:01:36] C14: French: Classical System: 4 Bg5 Be7 main line} h6 {[%emt 0:01:01]} 10. O-O {[%emt 0:09:14]} c5 {[%emt 0:00:08]} 11. Qe1 {[%emt 0:02:36]} cxd4 {[%emt 0:05:38]} 12. Nxd4 {[%emt 0:00:54]} Qb4 $146 {[%emt 0:00:50]} ({Predecessor:} 12... Nc6 13. Qe3 Nxd4 14. Qxd4 Qc5 15. Ne2 Qxd4+ 16. Nxd4 Nc5 {½-½ (27) Korchut,A (2061)-Machado,M (2064) ICCF email 2012}) 13. Qe3 {[%emt 0:06:23]} Nc5 {[%emt 0:07:00]} 14. f5 {[%emt 0:08:00]} Nc6 {[%emt 0:02:41]} 15. Nxc6 {[%emt 0:02:40]} bxc6 {[%emt 0:00:12]} 16. f6 {[%emt 0:01:40]} g5 $2 {[%emt 0:06:30]} (16... Nxd3 17. fxg7 (17. cxd3 d4 $16) 17... Kxg7) 17. Qh3 {[%emt 0:07:10]} Qh4 {[%emt 0:00:14]} 18. Qxh4 {[%emt 0:00:33]} gxh4 {[%emt 0:00:08]} 19. Rf4 {[%emt 0:00:32]} Nxd3 {[%emt 0:01:57]} 20. cxd3 {[%emt 0:00:01]} Kh7 {[%emt 0:01:04]} 21. Rxh4 {[%emt 0:01:00]} Rg8 {[%emt 0:01:11]} 22. Rf1 {[%emt 0:02:41]} Bb7 $2 {[%emt 0:01:03]} (22... Rg5 23. Rf3 h5) 23. Rf3 {[%emt 0:00:35]} Rg6 {[%emt 0:05:45]} 24. Rfh3 {[%emt 0:00:38]} Rh8 {[%emt 0:10:15]} 25. Ne2 {[%emt 0:01:56]} Kg8 {[%emt 0:00:38]} 26. Rb4 {[%emt 0:02:41]} Bc8 {[%emt 0:01:01]} 27. Rb8 {[%emt 0:00:38]} Kh7 {[%emt 0:00:13]} 28. Nd4 {[%emt 0:02:36]} c5 {[%emt 0:00:53]} 29. Nc6 {[%emt 0:02:47]} Rgg8 {[%emt 0:08:36]} 30. Ne7 {[%emt 0:00:09]} Re8 {[%emt 0:01:32]} 31. Rg3 {[%emt 0:00:17]} Rhf8 {[%emt 0:00:43]} 32. Rg7+ {[%emt 0:01:42]} ({Not} 32. Nxc8 h5 $18) ({Weaker is} 32. Rxc8 Rxc8 33. Nxc8 Rxc8 $18) 32... Kh8 {[%emt 0:00:10]} 33. Nxc8 {[%emt 0:01:48]} Rxc8 {[%emt 0:00:25]} 34. Rxc8 {[%emt 0:00:05]} Rxc8 {[%emt 0:00:07]} 35. Rxf7 {[%emt 0:00:04]} c4 {[%emt 0:00:11]} 36. dxc4 {[%emt 0:00:22]} dxc4 {[%emt 0:01:16]} 37. Re7 {[%emt 0:00:15]} Kg8 {[%emt 0:00:15]} 38. Rxe6 {[%emt 0:04:13]} Kf7 {[%emt 0:00:28]} 39. Rxa6 {[%emt 0:01:30]} Re8 {[%emt 0:02:21]} 40. Ra7+ {[%emt 0:00:00]} Kf8 {[%emt 0:00:00] [#]} 41. Re7 $1 {[%emt 0:00:59]} Rb8 {[%emt 0:00:45]} 42. Rh7 {[%emt 0:01:48]} Rb6 $18 {[%emt 0:00:29]} 43. Rxh6 {[%emt 0:00:36]} Kf7 {[%emt 0:01:21]} 44. Rh7+ {[%emt 0:00:14]} Kf8 {[%emt 0:00:11]} 45. g4 {[%emt 0:00:31]} Re6 {[%emt 0:00:23]} 46. Re7 {[%emt 0:00:07]} Rb6 {[%emt 0:00:14]} 47. e6 {[%emt 0:00:51]} Rxb2 {[%emt 0:02:02]} 48. Rh7 {[%emt 0:00:22]} Kg8 {[%emt 0:00:08]} 49. e7 {[%emt 0:00:57]} Rb8 {[%emt 0:00:37]} 50. f7+ {[%emt 0:00:10]} Kxh7 51. e8=Q {[%emt 0:00:15]} 1-0

[Event "IIFL Wealth  4th Mumbai Junior U-13"]
[Site "Mumbai"]
[Date "2019.01.01"]
[Round "3"]
[White "Jain Kashish Manoj"]
[Black "Balkawade Sai"]
[Result "1-0"]
[ECO "A07"]
[WhiteElo "1853"]
[BlackElo "1482"]
[Annotator "NA RC"]
[PlyCount "79"]
[EventDate "2018.12.30"]
[EventType "swiss"]
[EventCountry "IND"]
[SourceTitle "playchess.com"]
[Source "ChessBase"]
[SourceQuality "1"]
[TimeControl "40/5400+30:1800+30"]

{[%evp 17,73,-22,32767,32767,36,30,68,32767,32767,32767,32767,32767,43,46,32767,32767,32767,37,43,48,32767,32767,32767,32767,32767,32767,32767,32767,74,83,100,103,174,184,189,-85,201,211,209,219,228,185,264,243,289,233,246,226,222,241,255,251,263,32767,32767,32767,32767,290]} 1. Nf3 {[%emt 0:00:00]} Nf6 {[%emt 0:00:00]} 2. g3 {[%emt 0:00:00]} d5 {[%emt 0:00:18]} 3. Bg2 {[%emt 0:00:00]} c6 {[%emt 0:01:46]} 4. O-O {[%emt 0:00:00]} Bg4 {[%emt 0:01:24]} 5. d3 {[%emt 0:00:39]} Nbd7 {[%emt 0:00:47]} 6. Nbd2 {[%emt 0:00:10]} e5 {[%emt 0:01:47]} 7. e4 {[%emt 0:00:15]} Bd6 {[%emt 0:01:22]} 8. h3 {[%emt 0:01:55]} Bh5 {[%emt 0:00:55]} 9. Qe1 {[%emt 0:08:48]} dxe4 {[%emt 0:07:49] A07: Réti Opening: New York and Capablanca Systems} (9... O-O 10. Nh4 Re8 11. a4 Nc5 12. a5 a6 13. Kh1 Ne6 14. Nb3 Qc7 15. Be3 Bf8 16. f4 c5 17. fxe5 Qxe5 18. Rf5 Qxb2 19. e5 Bg6 20. exf6 Bxf5 21. Nxf5 Qxf6 22. Qf2 Qd8 23. Rf1 Qd7 24. Nxc5 Bd6 25. Nxd7 {1-0 (25) Le,Q (2715)-Dreev,A (2649) chess.com INT 2018}) 10. dxe4 {[%emt 0:00:22]} O-O {[%emt 0:00:59]} 11. Nh4 {[%emt 0:04:55] LiveBook: 10 Games} Bg6 {[%emt 0:01:55]} 12. a4 $146 {[%emt 0:07:47]} ({Predecessor:} 12. Nc4 Be7 13. Qe2 b5 14. Nd2 a5 15. Nf5 Bxf5 16. exf5 Rc8 17. a4 Qb6 18. Nb3 bxa4 19. Rxa4 {1-0 (41) Habibi,A (2305)-Roos,C (2180) Budapest 1993}) 12... Qe7 {[%emt 0:03:20]} 13. Qe2 {[%emt 0:01:22]} Rfd8 {[%emt 0:07:08]} 14. Nc4 {[%emt 0:05:04]} Nc5 {[%emt 0:09:38]} 15. b4 {[%emt 0:06:54]} Ne6 {[%emt 0:10:22]} 16. c3 {[%emt 0:00:12]} Bc7 {[%emt 0:09:13]} 17. Nxg6 {[%emt 0:07:56]} hxg6 {[%emt 0:00:56]} 18. Be3 {[%emt 0:00:07]} b5 {[%emt 0:15:51]} 19. axb5 {[%emt 0:00:58]} cxb5 {[%emt 0:00:08]} 20. Na5 {[%emt 0:02:24]} Bxa5 {[%emt 0:01:02]} 21. Rxa5 {[%emt 0:00:17]} a6 {[%emt 0:01:04]} 22. Rfa1 {[%emt 0:00:47]} Qc7 {[%emt 0:06:22]} 23. Rc1 {[%emt 0:25:18]} ({Much worse is} 23. Rxa6 Rxa6 24. Rxa6 Qxc3 $11) 23... Rd6 {[%emt 0:10:18]} 24. c4 {[%emt 0:03:51]} Rc6 {[%emt 0:01:33]} (24... Nd4 $16 25. Qa2 bxc4) 25. c5 {[%emt 0:00:11]} Rd8 {[%emt 0:01:10]} 26. Rd1 $2 {[%emt 0:01:04]} (26. Rca1 $18) 26... Kf8 $2 {[%emt 0:01:06]} (26... Rxd1+ $1 $15 {stays ahead.} 27. Qxd1 Nxc5) 27. Ra2 {[%emt 0:00:42]} Rxd1+ {[%emt 0:01:52]} 28. Qxd1 {[%emt 0:00:01]} Qc8 {[%emt 0:01:36]} 29. f3 {[%emt 0:02:23]} Ke7 {[%emt 0:01:00]} (29... g5 $142 30. Qa1 Nd7) 30. h4 {[%emt 0:00:31]} Qc7 {[%emt 0:00:33]} 31. Bh3 {[%emt 0:00:35]} Qc8 {[%emt 0:00:53]} 32. Rd2 {[%emt 0:02:21]} Qc7 {[%emt 0:00:16]} 33. Kg2 {[%emt 0:00:30]} a5 {[%emt 0:00:25]} 34. Bxe6 {[%emt 0:03:17]} Rxe6 {[%emt 0:00:43]} 35. bxa5 {[%emt 0:01:32]} Qxa5 {[%emt 0:00:11]} 36. Rd6 {[%emt 0:00:33]} Qc7 {[%emt 0:00:27] [#]} 37. Rb6 $18 {[%emt 0:01:39]} Rxb6 {[%emt 0:00:40]} 38. cxb6 {[%emt 0:00:01]} Qc6 {[%emt 0:00:32]} 39. Qa1 {[%emt 0:00:21]} Qb7 {[%emt 0:01:20]} 40. Qa7 {[%emt 0:00:00]} 1-0

[Event "IIFL Wealth  4th Mumbai Junior U-13"]
[Site "Mumbai"]
[Date "2019.01.01"]
[Round "3"]
[White "Aditya Varun Gampa"]
[Black "Jain, Kushagra"]
[Result "1-0"]
[ECO "B09"]
[WhiteElo "1809"]
[BlackElo "1323"]
[Annotator "NA RC"]
[PlyCount "68"]
[EventDate "2018.12.30"]
[EventType "swiss"]
[EventCountry "IND"]
[SourceTitle "playchess.com"]
[Source "ChessBase"]
[SourceQuality "1"]
[TimeControl "40/5400+30:1800+30"]

1. e4 {[%emt 0:00:00]} d6 {[%emt 0:03:03]} 2. d4 {[%emt 0:00:45]} Nf6 {[%emt 0:00:15]} 3. Nc3 {[%emt 0:00:43]} g6 {[%emt 0:00:13]} 4. f4 {[%emt 0:01:16]} Bg7 {[%emt 0:00:14]} 5. Nf3 {[%emt 0:00:19]} c5 {[%emt 0:00:10]} 6. dxc5 {[%emt 0:01:45]} Qa5 {[%emt 0:00:19]} 7. Bd3 {[%emt 0:00:51]} Qxc5 {[%emt 0:00:13]} 8. Qe2 {[%emt 0:00:43]} O-O {[%emt 0:00:42]} 9. Be3 {[%emt 0:00:28]} Qa5 {[%emt 0:00:23]} 10. O-O {[%emt 0:06:19]} Bg4 {[%emt 0:02:25]} 11. h3 {[%emt 0:02:08] LiveBook: 92 Games} Bxf3 {[%emt 0:00:25]} 12. Rxf3 {[%emt 0:03:38]} Nc6 {[%emt 0:00:56]} 13. Raf1 {[%emt 0:01:05] B09: Pirc Defence: Austrian Attack} (13. Rd1 Nd7 14. Bc4 Nc5 15. Bf2 Rac8 16. Kh1 a6 17. e5 b5 18. Bd5 b4 19. Ne4 Nxe4 20. Qxe4 Qc7 {1-0 (29) Sazon,A (2130)-Conterno,D (2148) ICCF email 2011}) 13... Nd7 {[%emt 0:03:02]} 14. Rg3 $146 {[%emt 0:03:27]} ({Predecessor:} 14. Qd2 Nc5 15. a3 Nxd3 16. cxd3 Nd4 17. R3f2 f5 18. Nd5 Qxd2 19. Bxd2 e6 20. Ne3 Nb3 {0-1 (56) Buenafe Moya,J-Lloret,J Spain 1992}) 14... Bxc3 {[%emt 0:05:40]} 15. bxc3 {[%emt 0:00:06]} Qxc3 {[%emt 0:00:52]} 16. h4 Kh8 {[%emt 0:15:34]} 17. h5 {[%emt 0:07:03]} Nf6 {[%emt 0:06:20]} 18. Rh3 {[%emt 0:06:40]} (18. hxg6 $11 fxg6 19. Rh3) 18... gxh5 $2 {[%emt 0:08:23]} (18... Nxh5 $11 19. g4 Nf6) 19. e5 {[%emt 0:07:18]} dxe5 {[%emt 0:07:11]} 20. fxe5 {[%emt 0:01:06]} Nd4 $18 {[%emt 0:04:35]} 21. Qf2 {[%emt 0:04:57]} Ng4 {[%emt 0:00:32]} 22. Bxd4 {[%emt 0:00:57]} Nxf2 {[%emt 0:00:12]} 23. Bxc3 {[%emt 0:00:09]} Nxh3+ {[%emt 0:00:09]} 24. gxh3 {[%emt 0:00:07]} e6 {[%emt 0:03:43]} 25. Bb4 {[%emt 0:00:52]} Rg8+ {[%emt 0:00:09]} 26. Kh2 {[%emt 0:00:07]} Rg7 {[%emt 0:00:19]} 27. Be7 {[%emt 0:00:18]} Kg8 {[%emt 0:01:44]} 28. Bf6 {[%emt 0:00:22]} Rg6 {[%emt 0:00:13]} 29. Bxg6 {[%emt 0:00:19]} hxg6 {[%emt 0:00:08]} 30. Rd1 {[%emt 0:00:12]} Kh7 {[%emt 0:00:41]} 31. Rd8 {[%emt 0:00:16]} Rxd8 {[%emt 0:00:14]} 32. Bxd8 Kg7 {[%emt 0:00:21]} 33. Bf6+ {[%emt 0:00:19]} Kf8 {[%emt 0:00:08]} 34. Kg3 {[%emt 0:00:13]} Ke8 1-0

[Event "IIFL Wealth  4th Mumbai Junior U-13"]
[Site "Mumbai"]
[Date "2019.01.01"]
[Round "3"]
[White "Ayush Sharma"]
[Black "Sushanth Kamabathula"]
[Result "1-0"]
[ECO "C87"]
[WhiteElo "1778"]
[BlackElo "1267"]
[Annotator "NA RC"]
[PlyCount "71"]
[EventDate "2018.12.30"]
[EventType "swiss"]
[EventCountry "IND"]
[SourceTitle "playchess.com"]
[Source "ChessBase"]
[SourceQuality "1"]
[TimeControl "40/5400+30:1800+30"]

1. e4 {[%emt 0:00:00]} e5 {[%emt 0:00:46]} 2. Nf3 {[%emt 0:00:00]} Nc6 {[%emt 0:00:10]} 3. Bb5 {[%emt 0:00:00]} a6 {[%emt 0:00:11]} 4. Ba4 {[%emt 0:00:00]} Nf6 {[%emt 0:00:41]} 5. O-O {[%emt 0:00:00]} Be7 {[%emt 0:00:10]} 6. Re1 {[%emt 0:00:05]} d6 {[%emt 0:00:18]} 7. c3 {[%emt 0:01:54]} b5 {[%emt 0:03:57]} 8. Bb3 {[%emt 0:00:07]} Bg4 {[%emt 0:02:29]} 9. h3 {[%emt 0:03:35]} Bh5 {[%emt 0:00:34]} 10. d3 {[%emt 0:00:34]} O-O {[%emt 0:03:30]} 11. Nbd2 {[%emt 0:06:09]} Na5 {[%emt 0:01:01]} 12. Bc2 {[%emt 0:00:30]} c5 {[%emt 0:00:32]} 13. Nf1 {[%emt 0:06:50]} Nc6 {[%emt 0:02:15]} 14. Ng3 {[%emt 0:06:14]} Bg6 {[%emt 0:00:21]} 15. Nf5 {[%emt 0:00:52]} Bxf5 {[%emt 0:01:42]} 16. exf5 {[%emt 0:00:07]} Qc7 {[%emt 0:00:24]} 17. g4 {[%emt 0:08:45]} Rfd8 {[%emt 0:02:28]} 18. g5 {[%emt 0:00:55]} Nd7 {[%emt 0:00:16]} 19. g6 {[%emt 0:03:48]} d5 {[%emt 0:16:02]} 20. d4 {[%emt 0:15:28]} e4 {[%emt 0:03:52]} 21. gxf7+ {[%emt 0:00:06]} Kf8 {[%emt 0:04:23]} 22. Ng5 {[%emt 0:00:26]} Bxg5 {[%emt 0:00:15]} 23. Bxg5 {[%emt 0:00:03]} Ne7 {[%emt 0:00:47]} 24. Qh5 {[%emt 0:01:54]} h6 {[%emt 0:14:01]} 25. Bh4 {[%emt 0:01:42]} Qf4 {[%emt 0:03:40]} 26. f3 {[%emt 0:08:00]} Qd2 {[%emt 0:08:43]} 27. fxe4 {[%emt 0:02:26]} cxd4 {[%emt 0:08:33]} 28. Re2 {[%emt 0:03:10]} Qf4 {[%emt 0:00:32]} 29. Rf1 {[%emt 0:00:04]} Qd6 {[%emt 0:00:15]} 30. e5 {[%emt 0:00:57]} Qb6 {[%emt 0:14:00]} 31. f6 {[%emt 0:00:44]} d3+ {[%emt 0:00:41]} 32. Kh1 {[%emt 0:00:56]} gxf6 {[%emt 0:00:29]} 33. Qxh6+ {[%emt 0:00:25]} Kxf7 {[%emt 0:00:09]} 34. e6+ {[%emt 0:00:03]} Ke8 {[%emt 0:02:30]} 35. Qh5+ {[%emt 0:00:04]} Kf8 {[%emt 0:00:13]} 36. Qf7# {[%emt 0:00:05]} 1-0

[Event "IIFL Wealth  4th Mumbai Junior U-13"]
[Site "Mumbai"]
[Date "2019.01.01"]
[Round "3"]
[White "Bagwe Gaurang"]
[Black "Rout Yashita"]
[Result "1-0"]
[ECO "C77"]
[WhiteElo "1768"]
[BlackElo "1264"]
[Annotator "NA RC"]
[PlyCount "71"]
[EventDate "2018.12.30"]
[EventType "swiss"]
[EventCountry "IND"]
[SourceTitle "playchess.com"]
[Source "ChessBase"]
[SourceQuality "1"]
[TimeControl "40/5400+30:1800+30"]

1. e4 {[%emt 0:00:00]} e5 {[%emt 0:00:00]} 2. Nf3 {[%emt 0:00:00]} Nc6 {[%emt 0:00:00]} 3. Bb5 {[%emt 0:00:02]} a6 {[%emt 0:00:14]} 4. Ba4 {[%emt 0:00:01]} Nf6 {[%emt 0:00:27]} 5. d3 {[%emt 0:00:17]} b5 {[%emt 0:01:33]} 6. Bb3 {[%emt 0:00:09]} Be7 {[%emt 0:00:37]} 7. c3 {[%emt 0:01:40]} d6 {[%emt 0:00:55]} 8. Nbd2 {[%emt 0:00:41]} O-O {[%emt 0:00:40]} 9. Nf1 {[%emt 0:00:23]} Bb7 {[%emt 0:09:39]} 10. Ng3 {[%emt 0:02:37]} Qd7 {[%emt 0:02:56]} 11. Nf5 {[%emt 0:02:28]} Bd8 {[%emt 0:04:51]} 12. O-O {[%emt 0:03:56]} Ne7 {[%emt 0:02:19]} 13. N3h4 {[%emt 0:02:01]} Nxf5 {[%emt 0:00:28]} 14. Nxf5 {[%emt 0:00:11]} Re8 {[%emt 0:07:06]} 15. Qf3 {[%emt 0:05:51]} Kh8 {[%emt 0:10:19]} 16. Qg3 {[%emt 0:10:33]} Rg8 {[%emt 0:01:05]} 17. f4 {[%emt 0:01:12]} exf4 {[%emt 0:06:49]} 18. Bxf4 {[%emt 0:01:51]} d5 {[%emt 0:11:58]} 19. Rad1 {[%emt 0:07:42]} Nh5 {[%emt 0:05:37]} 20. Qh3 {[%emt 0:01:46]} Nxf4 {[%emt 0:02:28]} 21. Rxf4 {[%emt 0:00:02]} Qe6 {[%emt 0:01:04]} 22. exd5 {[%emt 0:06:48]} Bxd5 {[%emt 0:03:14]} 23. c4 {[%emt 0:00:58]} Qb6+ {[%emt 0:01:48]} 24. Kh1 {[%emt 0:01:39]} Be6 {[%emt 0:00:53]} 25. c5 {[%emt 0:03:45]} Qxc5 {[%emt 0:03:57]} 26. d4 {[%emt 0:02:31]} Qb6 {[%emt 0:04:11]} 27. d5 {[%emt 0:01:20]} Bxf5 {[%emt 0:00:31]} 28. Rxf5 {[%emt 0:00:06]} Qg6 {[%emt 0:03:35]} 29. d6 {[%emt 0:00:42]} Rf8 {[%emt 0:00:27]} 30. Bc2 {[%emt 0:04:18]} Bf6 {[%emt 0:06:02]} 31. dxc7 {[%emt 0:01:34]} Rac8 {[%emt 0:00:20]} 32. Rf2 {[%emt 0:00:45]} Qh6 {[%emt 0:04:56]} 33. Qxh6 {[%emt 0:00:26]} gxh6 {[%emt 0:00:08]} 34. Rxf6 {[%emt 0:00:08]} Kg7 {[%emt 0:00:21]} 35. Rc6 {[%emt 0:00:15]} f6 {[%emt 0:00:22]} 36. Bf5 1-0

[Event "IIFL Wealth  4th Mumbai Junior U-13"]
[Site "Mumbai"]
[Date "2019.01.01"]
[Round "3"]
[White "Bhagyashree Patil"]
[Black "Ananya Parikh"]
[Result "1-0"]
[ECO "B41"]
[WhiteElo "1758"]
[BlackElo "1235"]
[Annotator "NA RC"]
[PlyCount "61"]
[EventDate "2018.12.30"]
[EventType "swiss"]
[EventCountry "IND"]
[SourceTitle "playchess.com"]
[Source "ChessBase"]
[SourceQuality "1"]
[TimeControl "40/5400+30:1800+30"]

1. e4 {[%emt 0:00:00]} c5 {[%emt 0:00:45]} 2. Nf3 {[%emt 0:00:00]} e6 {[%emt 0:00:17]} 3. d4 {[%emt 0:00:00]} cxd4 {[%emt 0:00:24]} 4. Nxd4 {[%emt 0:00:00]} a6 {[%emt 0:00:21]} 5. Be3 {[%emt 0:04:27]} Nf6 {[%emt 0:02:42]} 6. Bd3 {[%emt 0:03:47]} Qc7 {[%emt 0:03:30]} 7. O-O {[%emt 0:02:07]} Bc5 {[%emt 0:04:53]} 8. Nd2 {[%emt 0:03:55]} d6 {[%emt 0:04:01]} 9. Qe2 {[%emt 0:03:14]} Nc6 {[%emt 0:05:08]} 10. Nxc6 {[%emt 0:02:37]} Bxe3 {[%emt 0:01:18]} 11. Qxe3 {[%emt 0:00:29]} bxc6 {[%emt 0:01:22]} 12. b4 {[%emt 0:02:51]} Rb8 {[%emt 0:07:20]} 13. Rfb1 {[%emt 0:01:04]} e5 {[%emt 0:04:36]} 14. a4 {[%emt 0:05:05]} Qb6 {[%emt 0:05:18]} 15. Qg3 {[%emt 0:02:52]} O-O {[%emt 0:03:16]} 16. c4 {[%emt 0:02:30]} Bd7 {[%emt 0:06:42]} 17. b5 {[%emt 0:04:09]} cxb5 {[%emt 0:11:20]} 18. cxb5 {[%emt 0:00:38]} axb5 {[%emt 0:03:04]} 19. axb5 {[%emt 0:00:10]} Qc5 {[%emt 0:01:54]} 20. Qe3 {[%emt 0:03:00]} Qxe3 {[%emt 0:05:00]} 21. fxe3 {[%emt 0:00:21]} Rfc8 {[%emt 0:01:52]} 22. b6 {[%emt 0:04:04]} Bc6 {[%emt 0:02:41]} 23. Ra7 {[%emt 0:01:52]} Bb7 {[%emt 0:05:43]} 24. Kf2 {[%emt 0:02:46]} Rc6 {[%emt 0:03:20]} 25. Nc4 {[%emt 0:03:33]} Rxc4 {[%emt 0:08:14]} 26. Bxc4 {[%emt 0:00:20]} Nxe4+ {[%emt 0:00:05]} 27. Kg1 {[%emt 0:01:44]} Nd2 {[%emt 0:02:15]} 28. Rc1 {[%emt 0:01:10]} Be4 {[%emt 0:02:13]} 29. Bxf7+ {[%emt 0:00:38]} Kh8 {[%emt 0:01:39]} 30. b7 {[%emt 0:00:35]} Bxb7 {[%emt 0:01:23]} 31. Rxb7 {[%emt 0:00:05]} 1-0

[Event "IIFL Wealth  4th Mumbai Junior U-13"]
[Site "Mumbai"]
[Date "2019.01.01"]
[Round "3"]
[White "Sadbhav Rautela"]
[Black "Sawalakhe Jay"]
[Result "1-0"]
[ECO "B01"]
[WhiteElo "1746"]
[BlackElo "1273"]
[Annotator "NA RC"]
[PlyCount "131"]
[EventDate "2018.12.30"]
[EventType "swiss"]
[EventCountry "IND"]
[SourceTitle "playchess.com"]
[Source "ChessBase"]
[SourceQuality "1"]
[TimeControl "40/5400+30:1800+30"]

1. e4 {[%emt 0:00:00]} d5 {[%emt 0:00:00]} 2. exd5 {[%emt 0:00:00]} Nf6 {[%emt 0:00:00]} 3. d4 {[%emt 0:00:15]} Bg4 {[%emt 0:00:00]} 4. Bb5+ {[%emt 0:00:44]} c6 {[%emt 0:00:24]} 5. dxc6 {[%emt 0:00:39]} Qa5+ {[%emt 0:03:19]} 6. Nc3 {[%emt 0:02:19]} bxc6 {[%emt 0:00:03]} 7. Be2 {[%emt 0:00:34]} Bf5 {[%emt 0:01:12]} 8. Nf3 {[%emt 0:24:15]} e6 {[%emt 0:02:18]} 9. O-O {[%emt 0:04:02]} Bd6 {[%emt 0:04:18]} 10. h3 {[%emt 0:09:20]} O-O {[%emt 0:02:45]} 11. Bd3 {[%emt 0:05:21]} Bg6 {[%emt 0:02:17]} 12. Bxg6 {[%emt 0:00:16]} hxg6 {[%emt 0:01:07]} 13. Re1 {[%emt 0:08:20]} Rd8 {[%emt 0:02:15]} 14. Bd2 {[%emt 0:02:19]} Qc7 {[%emt 0:03:28]} 15. Ne4 {[%emt 0:00:48]} Nxe4 {[%emt 0:02:03]} 16. Rxe4 {[%emt 0:00:09]} Nd7 {[%emt 0:00:45]} 17. c3 {[%emt 0:00:55]} Nf8 {[%emt 0:01:35]} 18. Qc2 {[%emt 0:01:37]} f5 {[%emt 0:01:24]} 19. Ree1 {[%emt 0:01:35]} Be7 {[%emt 0:01:02]} 20. Bg5 {[%emt 0:01:30]} Bf6 {[%emt 0:01:36]} 21. Bxf6 {[%emt 0:08:22]} gxf6 {[%emt 0:00:31]} 22. Rad1 {[%emt 0:04:33]} Kf7 {[%emt 0:01:52]} 23. Qe2 {[%emt 0:04:19]} Qe7 {[%emt 0:02:49]} 24. Qc4 {[%emt 0:01:01]} Rac8 {[%emt 0:01:00]} 25. Kf1 {[%emt 0:02:46]} g5 {[%emt 0:01:10]} 26. Qe2 {[%emt 0:02:47]} Ng6 {[%emt 0:00:59]} 27. g3 {[%emt 0:02:11]} Rh8 {[%emt 0:01:19]} 28. Kg2 {[%emt 0:00:49]} Rh6 {[%emt 0:05:10]} 29. Qa6 {[%emt 0:03:10]} Qd7 {[%emt 0:01:36]} 30. Qc4 {[%emt 0:01:54]} Rch8 {[%emt 0:01:07]} 31. Rh1 {[%emt 0:00:16]} Ne7 {[%emt 0:05:49]} 32. Nd2 {[%emt 0:02:28]} Nd5 {[%emt 0:01:41]} 33. Nb3 {[%emt 0:00:51]} f4 {[%emt 0:00:58]} 34. Nc5 {[%emt 0:00:54]} Qd6 {[%emt 0:02:47]} 35. Qe2 {[%emt 0:02:17]} fxg3 {[%emt 0:14:03]} 36. fxg3 {[%emt 0:00:11]} f5 {[%emt 0:00:14]} 37. c4 {[%emt 0:01:11]} Nb6 {[%emt 0:00:50]} 38. b3 {[%emt 0:01:29]} Rf6 {[%emt 0:02:10]} 39. Qe5 {[%emt 0:00:57]} Qe7 {[%emt 0:00:01]} 40. Rhf1 {[%emt 0:00:00]} Rg8 {[%emt 0:00:00]} 41. Na6 {[%emt 0:10:46]} Rc8 {[%emt 0:05:28]} 42. Nc5 {[%emt 0:01:33]} Rg8 {[%emt 0:00:19]} 43. Na6 {[%emt 0:02:42]} Rc8 {[%emt 0:00:13]} 44. Nc5 {[%emt 0:00:05]} Rg8 {[%emt 0:01:01]} 45. Ne4 {[%emt 0:00:35]} Nd7 {[%emt 0:01:18]} 46. Nxf6 {[%emt 0:01:04]} Nxe5 {[%emt 0:00:41]} 47. Nxg8 {[%emt 0:00:17]} Kxg8 {[%emt 0:00:05]} 48. dxe5 {[%emt 0:00:13]} Qc5 {[%emt 0:01:11]} 49. Rfe1 {[%emt 0:01:40]} Qa5 {[%emt 0:01:31]} 50. Re2 {[%emt 0:02:19]} Kf7 {[%emt 0:00:28]} 51. Rd7+ {[%emt 0:01:34]} Kg6 {[%emt 0:05:33]} 52. Rd6 {[%emt 0:01:10]} Qc3 {[%emt 0:02:21]} 53. Rxe6+ {[%emt 0:00:33]} Kh5 {[%emt 0:00:34]} 54. Rd6 {[%emt 0:03:48]} g4 {[%emt 0:00:12]} 55. hxg4+ {[%emt 0:00:46]} fxg4 {[%emt 0:02:10]} 56. Rf6 {[%emt 0:01:52]} Qd3 {[%emt 0:00:08]} 57. Rff2 {[%emt 0:00:34]} Qd7 {[%emt 0:01:20]} 58. e6 {[%emt 0:00:13]} Qe7 {[%emt 0:00:41]} 59. Rf7 {[%emt 0:00:39]} Qe8 {[%emt 0:00:25]} 60. e7 {[%emt 0:00:17]} c5 {[%emt 0:00:21]} 61. Rf8 {[%emt 0:00:31]} Qc6+ {[%emt 0:00:08]} 62. Kh2 {[%emt 0:00:41]} Qh6 {[%emt 0:00:16]} 63. e8=Q+ {[%emt 0:01:03]} Kg5+ {[%emt 0:00:05]} 64. Kg1 {[%emt 0:00:24]} Qh3 {[%emt 0:00:29]} 65. Rg8+ {[%emt 0:00:28]} Kh6 {[%emt 0:00:31]} 66. Qg6# {[%emt 0:00:36]} 1-0